Workbook

Sheet Achat Jour
F1: Prix Jour | I1: PA BRUT | J1: Frontignan | L1: Port la Nvlle | M1: Marge | N1: PV Brut
A2: ADDITIVATION | B2: 7 | D2: FALSE | F2: FOD A | G2: TRUE | I2: 500 | M2: 150 | N2: =I2+M2 -> 650
A3: PRECARITE | B3: 6 | D3: FALSE | F3: GNR A | G3: TRUE | I3: 800 | M3: 100 | N3: =I3+M3 -> 900
A4: CEE GNR/GO | B4: 3 | D4: FALSE | F4: GO | G4: TRUE | I4: 700 | M4: 50 | N4: =I4+M4 -> 750
A6: Propagé ? | B6: Oui | D6: TRUE | G6: FALSE | I6: Non
A8: Prix Achat | F8: NARBONNE | J8: REFERENCE | K8: CODE TARIF | L8: PA RENDU | M8: PV BRUT
D9: FRO | G9: PLN | J9: 0310 | K9: H1 | L9: =L12-B2 -> 808 | M9: =L9+M3 -> 908
A10: TRANSPORT | F10: 8 | I10: 5 | J10: 0210 | K10: H1 | L10: =L11-B2 -> 511 | M10: =L10+M2 -> 661
A11: FOD A | B11: 200 | C11: =IF($D$6=TRUE,(I2+B2+B3+F10),I11=I2+B2+B3+I10) -> 521 | D11: FALSE | F11: =IF(D6=TRUE,IF(D2=TRUE,I2+B2+B3+F10,0),IF(D6=FALSE,IF(D11=TRUE,B11+B2+B3+F10,0))) -> 0 | G11: TRUE | I11: =IF(AND($D$6=TRUE,$D$2=FALSE),$I$2+$B$2+B3+I10,IF(AND($D$6=FALSE,D11=FALSE),B11+B2+B2+I10,0)) -> 518 | J11: 0217A | K11: H1 | L11: =IF(D11=TRUE,F11,I11) -> 518 | M11: =L11+M2 -> 668
A12: GNR A | B12: 300 | C12: =IF(D6=TRUE,(I3+B2+B4+F10),I12=I3+B2+B4+I11) -> 818 | D12: FALSE | F12: =IF(D6=TRUE,IF(D3=TRUE,I3+B2+B4+F10,0),IF(D6=FALSE,IF(D12=TRUE,B12+B2+B4+F10,0))) -> 0 | G12: TRUE | I12: =IF(AND(D6=TRUE,D3=FALSE),I3+B2+B4+I10,IF(AND(D6=FALSE,D12=FALSE),B12+B2+B4+I10,0)) -> 815 | J12: 0312A | K12: H1 | L12: =IF(D12=TRUE,F12,I12) -> 815 | M12: =L12+M3 -> 915
A13: GO | B13: 400 | C13: =IF(D6=TRUE,(I4+B2+B4+F10),I13=I4+B2+B4+I10) -> 718 | D13: FALSE | F13: =IF(D6=TRUE,IF(D4=TRUE,I4+B2+B4+F10,0),IF(D6=FALSE,IF(D13=TRUE,B13+B2+B4+F10,0))) -> 0 | G13: TRUE | I13: =IF(AND(D6=TRUE,D4=FALSE),I4+B2+B4+I10,IF(AND(D6=FALSE,D13=FALSE),B13+B2+B4+I10,0)) -> 715 | J13: 0120 | K13: H1 | L13: =IF(D13=TRUE,F13,I13) -> 715 | M13: =L13+M4 -> 765
F14: CAPENDU
D15: FRO | G15: PLN | J15: 0310 | K15: H2 | L15: =L18-B2 -> 810 | M15: =L15+M3 -> 910
A16: TRANSPORT | F16: 11 | I16: 7 | J16: 0210 | K16: H2 | L16: =L17-B2 -> 513 | M16: =L16+M2 -> 663
A17: FOD | B17: 200 | C17: =IF($D$6=TRUE,(I2+$B$2+B3+$F$16),I17=I2+$B$2+B3+$I$16) -> 524 | D17: FALSE | F17: =IF(D6=TRUE,IF(D2=TRUE,I2+B2+B3+F16,0),IF(D6=FALSE,IF(D17=TRUE,B17+B2+B3+F16,0))) -> 0 | G17: TRUE | I17: =IF(AND($D$6=TRUE,$D$2=FALSE),$I$2+$B$2+B3+I16,IF(AND($D$6=FALSE,D17=FALSE),B17+B2+B3+I16,0)) -> 520 | J17: 0217A | K17: H2 | L17: =IF(D17=TRUE,F17,I17) -> 520 | M17: =L17+M2 -> 670
A18: GNR | B18: 300 | C18: =IF($D$6=TRUE,(I3+$B$2+B4+$F$16),I18=I3+$B$2+B4+$I$16) -> 821 | D18: FALSE | F18: =IF(D6=TRUE,IF(D3=TRUE,I3+B2+B4+F16,0),IF(D6=FALSE,IF(D18=TRUE,B18+B2+B4+F16,0))) -> 0 | G18: TRUE | I18: =IF(AND($D$6=TRUE,$D$3=FALSE),$I3+$B$2+B4+$I$16,IF(AND($D$6=FALSE,D18=FALSE),B18+$B$2+B4+$I$16,0)) -> 817 | J18: 0312A | K18: H2 | L18: =IF(D18=TRUE,F18,I18) -> 817 | M18: =L18+M3 -> 917
A19: GO | B19: 400 | C19: 718 | D19: FALSE | F19: =IF(D6=TRUE,IF(D4=TRUE,I4+B2+B4+F16,0),IF(D6=FALSE,IF(D19=TRUE,B19+B2+B4+F16,0))) -> 0 | G19: TRUE | I19: =IF(AND($D$6=TRUE,$D$4=FALSE),$I4+$B$2+B4+$I$16,IF(AND($D$6=FALSE,D19=FALSE),B19+$B$2+B4+$I$16,0)) -> 717 | J19: 0120 | K19: H2 | L19: =IF(D19=TRUE,F19,I19) -> 717 | M19: =L19+M4 -> 767
F20: HOMPS
D21: FRO | G21: PLN | J21: 0310 | K21: H3 | L21: =L24-B2 -> 809 | M21: =L21+M3 -> 909
A22: TRANSPORT | F22: 10 | I22: 6 | J22: 0210 | K22: H3 | L22: =L23-B2 -> 512 | M22: =L22+M2 -> 662
A23: FOD | B23: 200 | D23: FALSE | F23: =IF(D6=TRUE,IF(D2=TRUE,I2+B2+B3+F22,0),IF(D6=FALSE,IF(D23=TRUE,B23+B2+B3+F22,0))) -> 0 | G23: TRUE | I23: =IF(AND($D$6=TRUE,D2=FALSE),I2+$B$2+B3+$I$22,IF(AND($D$6=FALSE,D23=FALSE),B23+$B$2+B3+$I$22,0)) -> 519 | J23: 0217A | K23: H3 | L23: =IF(D23=TRUE,F23,I23) -> 519 | M23: =L23+M2 -> 669
A24: GNR | B24: 300 | D24: FALSE | F24: =IF(D6=TRUE,IF(D3=TRUE,I3+B2+B4+F22,0),IF(D6=FALSE,IF(D24=TRUE,B24+B2+B4+F22,0))) -> 0 | G24: TRUE | I24: =IF(AND($D$6=TRUE,$D$3=FALSE),$I$3+$B$2+B4+$I$22,IF(AND($D$6=FALSE,D24=FALSE),B24+$B$2+B4+$I$22,0)) -> 816 | J24: 0312A | K24: H3 | L24: =IF(D24=TRUE,F24,I24) -> 816 | M24: =L24+M3 -> 916
A25: GO | B25: 400 | D25: FALSE | F25: =IF(D6=TRUE,IF(D4=TRUE,I4+B2+B4+F22,0),IF(D6=FALSE,IF(D25=TRUE,B25+B2+B4+F22,0))) -> 0 | G25: TRUE | I25: =IF(AND($D$6=TRUE,$D$4=FALSE),$I$4+$B$2+B4+$I$22,IF(AND($D$6=FALSE,D25=FALSE),B25+$B$2+B4+$I$22,0)) -> 716 | J25: 0120 | K25: H3 | L25: =IF(D25=TRUE,F25,I25) -> 716 | M25: =L25+M4 -> 766
F26: LIMOUX
D27: FRO | G27: PLN | J27: 0310 | K27: H4 | L27: =L30-B2 -> 813 | M27: =L27+M3 -> 913
A28: TRANSPORT | F28: 14 | I28: 10 | J28: 0210 | K28: H4 | L28: =L29-B2 -> 516 | M28: =L28+M2 -> 666
A29: FOD | B29: 200 | D29: FALSE | F29: =IF(D6=TRUE,IF(D2=TRUE,I2+B2+B3+F28,0),IF(D6=FALSE,IF(D29=TRUE,B29+B2+B3+F28,0))) -> 0 | G29: TRUE | I29: =IF(AND($D$6=TRUE,D2=FALSE),I2+$B$2+B3+$I$28,IF(AND($D$6=FALSE,D29=FALSE),B29+$B$2+B3+$I$28,0)) -> 523 | J29: 0217A | K29: H4 | L29: =IF(D29=TRUE,F29,I29) -> 523 | M29: =L29+M2 -> 673
A30: GNR | B30: 300 | D30: FALSE | F30: =IF(D6=TRUE,IF(D3=TRUE,I3+B2+B4+F28,0),IF(D6=FALSE,IF(D30=TRUE,B30+B2+B4+F28,0))) -> 0 | G30: TRUE | I30: =IF(AND($D$6=TRUE,D3=FALSE),I3+$B$2+B4+$I$28,IF(AND($D$6=FALSE,D30=FALSE),B30+$B$2+B4+$I$28,0)) -> 820 | J30: 0312A | K30: H4 | L30: =IF(D30=TRUE,F30,I30) -> 820 | M30: =L30+M3 -> 920
A31: GO | B31: 400 | D31: FALSE | F31: =IF(D6=TRUE,IF(D4=TRUE,I4+B2+B4+F28,0),IF(D6=FALSE,IF(D31=TRUE,B31+B2+B4+F28,0))) -> 0 | G31: TRUE | I31: =IF(AND($D$6=TRUE,D4=FALSE),I4+$B$2+B4+$I$28,IF(AND($D$6=FALSE,D31=FALSE),B31+$B$2+B4+$I$28,0)) -> 720 | J31: 0120 | K31: H4 | L31: =IF(D31=TRUE,F31,I31) -> 720 | M31: =L31+M4 -> 770
F32: CARCASSONNE
D33: FRO | G33: PLN | J33: 0310 | K33: H5 | L33: =L36-B2 -> 811 | M33: =L33+M3 -> 911
A34: TRANSPORT | F34: 11 | I34: 8 | J34: 0210 | K34: H5 | L34: =L35-B2 -> 514 | M34: =L34+M2 -> 664
A35: FOD | B35: 200 | D35: FALSE | F35: =IF(D6=TRUE,IF(D2=TRUE,I2+B2+B3+F34,0),IF(D2=FALSE,IF(D35=TRUE,B35+B2+B3+F34,0))) -> 0 | G35: TRUE | I35: =IF(AND($D$6=TRUE,D2=FALSE),I2+$B$2+B3+$I$34,IF(AND($D$6=FALSE,D35=FALSE),B35+$B$2+B3+$I$34,0)) -> 521 | J35: 0217A | K35: H5 | L35: =IF(D35=TRUE,F35,I35) -> 521 | M35: =L35+M2 -> 671
A36: GNR | B36: 300 | D36: FALSE | F36: =IF(D6=TRUE,IF(D3=TRUE,I3+B2+B4+F34,0),IF(D3=FALSE,IF(D36=TRUE,B36+B2+B4+F34,0))) -> 0 | G36: TRUE | I36: =IF(AND($D$6=TRUE,D3=FALSE),I3+$B$2+B4+$I$34,IF(AND($D$6=FALSE,D36=FALSE),B36+$B$2+B4+$I$34,0)) -> 818 | J36: 0312A | K36: H5 | L36: =IF(D36=TRUE,F36,I36) -> 818 | M36: =L36+M3 -> 918
A37: GO | B37: 400 | D37: FALSE | F37: =IF(D6=TRUE,IF(D4=TRUE,I4+B2+B4+F34,0),IF(D4=FALSE,IF(D37=TRUE,B37+B2+B4+F34,0))) -> 0 | G37: TRUE | I37: =IF(AND($D$6=TRUE,D4=FALSE),I4+$B$2+B5+$I$34,IF(AND($D$6=FALSE,D37=FALSE),B37+$B$2+B5+$I$34,0)) -> 715 | J37: 0120 | K37: H5 | L37: =IF(D37=TRUE,F37,I37) -> 715 | M37: =L37+M4 -> 765

Sheet DIVALTO
A3: Champs clé | K3: Extraction | O3: Intégration | R3: Anomalies
A5: reference | B5: sref1 | C5: sref2 | D5: devise | E5: tarif | F5: client | G5: marche | H5: unite | I5: depot | J5: seuil | K5: donnee=art.des | L5: donnee=prix1 | M5: donnee=prixpar1 | N5: donnee=HTCOD | O5: resultat=HTCOD | P5: resultat=prix1 | Q5: resultat=prixpar1 | R5: erreur
A6: 0310 | D6: EUR | E6: H1 | H6: M3 | O6: HT | P6: ='Achat Jour'!M9 -> 908 | Q6: 1000 | R6: Code tarif H1 inexistant
A7: 0210 | D7: EUR | E7: H1 | H7: M3 | O7: HT | P7: ='Achat Jour'!M10 -> 661 | Q7: 1000 | R7: Code tarif H1 inexistant
A8: 0217A | D8: EUR | E8: H1 | H8: M3 | O8: HT | P8: ='Achat Jour'!M11 -> 668 | Q8: 1000 | R8: Code tarif H1 inexistant
A9: 0312A | D9: EUR | E9: H1 | H9: M3 | O9: HT | P9: ='Achat Jour'!M12 -> 915 | Q9: 1000 | R9: Code tarif H1 inexistant
A10: 0120 | D10: EUR | E10: H1 | H10: M3 | O10: HT | P10: ='Achat Jour'!M13 -> 765 | Q10: 1000 | R10: Code tarif H1 inexistant
A11: 0312 | D11: EUR | E11: H1 | H11: M3 | O11: HT | P11: =P9 -> 915 | Q11: 1000 | R11: Code tarif H1 inexistant
A12: 0217 | D12: EUR | E12: H1 | H12: M3 | O12: HT | P12: =P8 -> 668 | Q12: 1000 | R12: Code tarif H1 inexistant
A13: 0310 | D13: EUR | E13: H2 | H13: M3 | O13: HT | P13: ='Achat Jour'!M15 -> 910 | Q13: 1000 | R13: Code tarif H2 inexistant
A14: 0210 | D14: EUR | E14: H2 | H14: M3 | O14: HT | P14: ='Achat Jour'!M16 -> 663 | Q14: 1000 | R14: Code tarif H2 inexistant
A15: 0217A | D15: EUR | E15: H2 | H15: M3 | O15: HT | P15: ='Achat Jour'!M17 -> 670 | Q15: 1000 | R15: Code tarif H2 inexistant
A16: 0312A | D16: EUR | E16: H2 | H16: M3 | O16: HT | P16: ='Achat Jour'!M18 -> 917 | Q16: 1000 | R16: Code tarif H2 inexistant
A17: 0120 | D17: EUR | E17: H2 | H17: M3 | O17: HT | P17: ='Achat Jour'!M19 -> 767 | Q17: 1000 | R17: Code tarif H2 inexistant
A18: 0312 | D18: EUR | E18: H2 | H18: M3 | O18: HT | P18: =P16 -> 917 | Q18: 1000 | R18: Code tarif H2 inexistant
A19: 0217 | D19: EUR | E19: H2 | H19: M3 | O19: HT | P19: =P15 -> 670 | Q19: 1000 | R19: Code tarif H2 inexistant
A20: 0310 | D20: EUR | E20: H3 | H20: M3 | O20: HT | P20: ='Achat Jour'!M21 -> 909 | Q20: 1000 | R20: Code tarif H3 inexistant
A21: 0210 | D21: EUR | E21: H3 | H21: M3 | O21: HT | P21: ='Achat Jour'!M22 -> 662 | Q21: 1000 | R21: Code tarif H3 inexistant
A22: 0217A | D22: EUR | E22: H3 | H22: M3 | O22: HT | P22: ='Achat Jour'!M23 -> 669 | Q22: 1000 | R22: Code tarif H3 inexistant
A23: 0312A | D23: EUR | E23: H3 | H23: M3 | O23: HT | P23: ='Achat Jour'!M24 -> 916 | Q23: 1000 | R23: Code tarif H3 inexistant
A24: 0120 | D24: EUR | E24: H3 | H24: M3 | O24: HT | P24: ='Achat Jour'!M25 -> 766 | Q24: 1000 | R24: Code tarif H3 inexistant
A25: 0312 | D25: EUR | E25: H3 | H25: M3 | O25: HT | P25: =P23 -> 916 | Q25: 1000 | R25: Code tarif H3 inexistant
A26: 0217 | D26: EUR | E26: H3 | H26: M3 | O26: HT | P26: =P22 -> 669 | Q26: 1000 | R26: Code tarif H3 inexistant
A27: 0310 | D27: EUR | E27: H4 | H27: M3 | O27: HT | P27: ='Achat Jour'!M27 -> 913 | Q27: 1000 | R27: Code tarif H4 inexistant
A28: 0210 | D28: EUR | E28: H4 | H28: M3 | O28: HT | P28: ='Achat Jour'!M28 -> 666 | Q28: 1000 | R28: Code tarif H4 inexistant
A29: 0217A | D29: EUR | E29: H4 | H29: M3 | O29: HT | P29: ='Achat Jour'!M29 -> 673 | Q29: 1000 | R29: Code tarif H4 inexistant
A30: 0312A | D30: EUR | E30: H4 | H30: M3 | O30: HT | P30: ='Achat Jour'!M30 -> 920 | Q30: 1000 | R30: Code tarif H4 inexistant
A31: 0120 | D31: EUR | E31: H4 | H31: M3 | O31: HT | P31: ='Achat Jour'!M31 -> 770 | Q31: 1000 | R31: Code tarif H4 inexistant
A32: 0312 | D32: EUR | E32: H4 | H32: M3 | O32: HT | P32: =P30 -> 920 | Q32: 1000 | R32: Code tarif H4 inexistant
A33: 0217 | D33: EUR | E33: H4 | H33: M3 | O33: HT | P33: =P29 -> 673 | Q33: 1000 | R33: Code tarif H4 inexistant
A34: 0310 | D34: EUR | E34: H5 | H34: M3 | O34: HT | P34: ='Achat Jour'!M33 -> 911 | Q34: 1000 | R34: Code tarif H5 inexistant
A35: 0210 | D35: EUR | E35: H5 | H35: M3 | O35: HT | P35: ='Achat Jour'!M34 -> 664 | Q35: 1000 | R35: Code tarif H5 inexistant
A36: 0217A | D36: EUR | E36: H5 | H36: M3 | O36: HT | P36: ='Achat Jour'!M35 -> 671 | Q36: 1000 | R36: Code tarif H5 inexistant
A37: 0312A | D37: EUR | E37: H5 | H37: M3 | O37: HT | P37: ='Achat Jour'!M36 -> 918 | Q37: 1000 | R37: Code tarif H5 inexistant
A38: 0120 | D38: EUR | E38: H5 | H38: M3 | O38: HT | P38: ='Achat Jour'!M37 -> 765 | Q38: 1000 | R38: Code tarif H5 inexistant
A39: 0312 | D39: EUR | E39: H5 | H39: M3 | O39: HT | P39: =P37 -> 918 | Q39: 1000 | R39: Code tarif H5 inexistant
A40: 0217 | D40: EUR | E40: H5 | H40: M3 | O40: HT | P40: =P36 -> 671 | Q40: 1000 | R40: Code tarif H5 inexistant
